fUST/lending_fUST_20260310
["ID","MTS","AMOUNT","RATE_DAILY","PERIOD"]
[408064417,1773095440704,-1957.856,8.471e-05,2]
[408064418,1773095440714,-162.380719,8.471e-05,2]
[408064419,1773095440723,-500.0,8.471e-05,2]
[408064420,1773095440733,-168.3888056,8.471e-05,2]
[408064421,1773095440742,-500.0,8.471e-05,2]
[408064422,1773095440751,-174.61919141,8.471e-05,2]
[408064423,1773095440760,-500.0,8.471e-05,2]
[408064424,1773095440769,-500.0,8.471e-05,2]
[408064425,1773095440778,-181.08010149,8.471e-05,2]
[408064426,1773095440786,-500.0,8.471e-05,2]
[408064427,1773095440795,-187.78006525,8.471e-05,2]
[408064428,1773095440804,-500.0,8.471e-05,2]
[408064429,1773095440813,-194.72792766,8.471e-05,2]
[408064430,1773095440822,-500.0,8.471e-05,2]
[408064431,1773095440831,-201.93286099,8.471e-05,2]
[408064432,1773095440840,-500.0,8.471e-05,2]
[408064433,1773095440849,-209.40437684,8.471e-05,2]
[408064434,1773095440858,-162.380719,8.471e-05,2]
[408064435,1773095440867,-500.0,8.471e-05,2]
[408064436,1773095440876,-217.15233878,8.471e-05,2]
[408064437,1773095440885,-168.3888056,8.471e-05,2]
[408064438,1773095440898,-500.0,8.471e-05,2]
[408064439,1773095440907,-174.61919141,8.471e-05,2]
[408064440,1773095440916,-500.0,8.471e-05,2]
[408064441,1773095440926,-225.18697532,8.471e-05,2]
[408064442,1773095440935,-181.08010149,8.471e-05,2]
[408064443,1773095440943,-500.0,8.471e-05,2]
[408064444,1773095440952,-233.51889341,8.471e-05,2]
[408064445,1773095440962,-187.78006525,8.471e-05,2]
[408064446,1773095440971,-500.0,8.471e-05,2]
[408064447,1773095440979,-242.15909246,8.471e-05,2]
[408064448,1773095440988,-194.72792766,8.471e-05,2]
[408064449,1773095440997,-251.11897888,8.471e-05,2]
[408064450,1773095441007,-201.93286099,8.471e-05,2]
[408064451,1773095441015,-260.4103811,8.471e-05,2]
[408064452,1773095441024,-209.40437684,8.471e-05,2]
[408064453,1773095441033,-270.0455652,8.471e-05,2]
[408064454,1773095441041,-217.15233878,8.471e-05,2]
[408064455,1773095441050,-280.03725112,8.471e-05,2]
[408064456,1773095441058,-225.18697532,8.471e-05,2]
[408064457,1773095441067,-290.39862941,8.471e-05,2]
[408064458,1773095441075,-233.51889341,8.471e-05,2]
[408064459,1773095441083,-301.1433787,8.471e-05,2]
[408064460,1773095441092,-242.15909246,8.471e-05,2]
[408064461,1773095441100,-251.11897888,8.471e-05,2]
[408064462,1773095441109,-260.4103811,8.471e-05,2]
[408064463,1773095441118,-537.6845,8.471e-05,2]
[408064464,1773095441127,-270.0455652,8.471e-05,2]
[408064465,1773095441136,-280.03725112,8.471e-05,2]
[408064466,1773095441144,-290.39862941,8.471e-05,2]
[408064467,1773095441153,-302.53485211,8.471e-05,2]
[408064468,1773095441161,-2150.738,8.471e-05,2]
[408064469,1773095441170,-118354.07858974,8.514e-05,2]
[408064470,1773095441179,-151.0,8.514e-05,2]
[408064471,1773095441187,-151.0,8.514e-05,2]
[408064472,1773095441196,-151.0,8.514e-05,2]
[408064473,1773095441205,-2030.296672,8.526e-05,2]
[408064474,1773095441214,-1015.061258,8.546e-05,2]
[408064475,1773095441223,-2740.33275252,8.554e-05,2]
[408064476,1773095441232,-2105.41764886,8.581e-05,2]
[408064477,1773095441241,-2183.31810187,8.636e-05,2]
[408064478,1773095441250,-2264.10087164,8.691e-05,2]
[408064479,1773095441259,-154.93,8.7e-05,2]
[408064480,1773095441268,-2347.87260389,8.746e-05,2]
[408064481,1773095441277,-500.0,8.793e-05,2]
[408064482,1773095441286,-2434.74389024,8.801e-05,2]
[408064483,1773095441295,-2524.82941417,8.856e-05,2]
[408064484,1773095441303,-1015.061258,8.891e-05,2]
[408064485,1773095441312,-1390.88258582,8.911e-05,2]
[408064486,1773095441321,-2230.315306,9.019e-05,2]
[408064487,1773095441330,-758.0,9.128e-05,2]
[408064488,1773095441339,-1015.061258,9.236e-05,2]
[408064489,1773095441348,-241.43443693,9.277e-05,2]
[408064490,1773095441357,-671.63757598,9.561e-05,2]
[408064491,1773095441366,-2312.83697232,9.567e-05,2]
[408064492,1773095441375,-151.0,9.579e-05,2]
[408064493,1773095441383,-151.0,9.579e-05,2]
[408064494,1773095441392,-151.0,9.579e-05,2]
[408064495,1773095441401,-1015.061258,9.581e-05,2]
[408064496,1773095441409,-187.890654,9.639e-05,2]
[408064497,1773095441418,-3000.0,9.7e-05,30]
[408064498,1773095441427,-3000.0,9.71e-05,30]
[408064499,1773095441436,-3000.0,9.72e-05,30]
[408064500,1773095441445,-5056.118984,9.73e-05,30]
[408064501,1773095441454,-438327.973233,9.756e-05,2]
[408064502,1773095441463,-151.0,9.756e-05,2]
[408064503,1773095441472,-151.0,9.756e-05,2]
[408064504,1773095441481,-151.0,9.756e-05,2]
[408064505,1773095441489,-4704.01222576,9.826e-05,2]
[408064506,1773095441498,-600.0,9.848e-05,2]
[408064507,1773095441509,-1015.061258,9.927e-05,2]
[408064508,1773095441518,-3393.30846077,0.0001,2]
[408064509,1773095441526,-151.0,0.0001,2]
[408064510,1773095441535,-151.0,0.0001,2]
[408064511,1773095441544,-151.0,0.0001,2]
[408064512,1773095441552,-151.0,0.0001,2]
[408064513,1773095441561,-151.0,0.0001,2]
[408064514,1773095441570,-151.0,0.0001,2]
[408064515,1773095441579,-151.0,0.0001,2]
[408064516,1773095441588,-151.0,0.0001,2]
[408064517,1773095441596,-151.0,0.0001,2]
[408064518,1773095441605,-203.94798567,0.0001,2]
[408064519,1773095441614,-232.41493923,0.0001,2]
[408064520,1773095441623,-14288.05365264,0.000101,2]
[408064521,1773095441631,-2398.4119403,0.00010115,2]
[408064522,1773095441640,-2487.15318209,0.00010663,2]
[408064523,1773095441649,-720.0,0.00010833,2]
[408064524,1773095441657,-20845.1588533,0.00010959,2]
[408064525,1773095441666,-151.0,0.00010959,2]
[408064526,1773095441675,-151.0,0.00010959,2]
[408064527,1773095441684,-151.0,0.00010959,2]
[408064528,1773095441693,-273.10545345,0.00010959,2]
[408064529,1773095441701,-151.0,0.00011,2]
[408064530,1773095441710,-151.0,0.00011,2]
[408064531,1773095441719,-151.0,0.00011,2]
[408064532,1773095441728,-151.0,0.00011,2]
[408064533,1773095441737,-151.0,0.00011,2]
[408064534,1773095441746,-2579.17784983,0.00011211,2]
[408064535,1773095441755,-278.26341884,0.00011277,2]
[408064536,1773095441764,-2674.60743027,0.00011759,2]
[408064537,1773095441773,-864.0,0.00011916,2]
[408064538,1773095441782,-2773.56790519,0.00012307,2]
[408064539,1773095441791,-2876.18991768,0.00012855,2]
[408064540,1773095441800,-80000.0,0.00013,2]
[408064541,1773095441809,-151.0,0.00013,2]
[408064542,1773095441818,-151.0,0.00013,2]
[408064543,1773095441827,-175.746242,0.00013,2]
[408064544,1773095441836,-1000.0,0.00013108,2]
[408064545,1773095441845,-315.09240074,0.00013278,2]
[408064546,1773095441853,-151.0,0.000134,2]
[408064547,1773095441862,-2982.60894464,0.00013403,2]
[408064548,1773095441871,-2396.0582,0.000135,120]
[408064549,1773095441880,-163.178,0.000135,120]
[408064550,1773095441894,-713.9,0.00013698,2]
[408064551,1773095441903,-713.9,0.00013698,2]
[408064552,1773095441912,-713.9,0.00013698,2]
[408064553,1773095441921,-713.9,0.00013698,2]
[408064554,1773095441931,-713.9,0.00013698,2]
[408064555,1773095441940,-713.9,0.00013698,2]
[408064556,1773095441949,-713.9,0.00013698,2]
[408064557,1773095441957,-713.9,0.00013698,2]
[408064558,1773095441967,-713.9,0.00013698,2]
[408064559,1773095441976,-713.9,0.00013698,2]
[408064560,1773095441985,-713.9,0.00013698,2]
[408064561,1773095441993,-713.9,0.00013698,2]
[408064562,1773095442002,-713.9,0.00013698,2]
[408064563,1773095442011,-713.9,0.00013698,2]
[408064564,1773095442020,-713.9,0.00013698,2]
[408064565,1773095442029,-713.9,0.00013698,2]
[408064566,1773095442038,-713.9,0.00013698,2]
[408064567,1773095442046,-515.68541803,0.00013698,2]
[408064573,1773095443133,-151.0,0.00011,2]
[408064574,1773095443143,-151.0,0.000113,2]
[408064575,1773095443153,-151.0,0.000117,2]
[408064576,1773095443163,-151.0,0.00012,2]
[408064577,1773095443172,-151.0,0.000124,2]
[408064578,1773095443181,-151.0,0.000127,2]
[408064579,1773095443191,-151.0,0.000131,2]
[408064580,1773095443200,-198.21458197,0.00013698,2]
[408064581,1773095443209,-237.61087358,0.00013698,2]
[408064582,1773095443220,-476.28912642,0.00013698,2]
[408064583,1773095443229,-637.86124669,0.00013698,2]
[408064593,1773095446133,-76.03875331,0.00013698,2]
[408064594,1773095446145,-713.9,0.00013698,2]
[408064595,1773095446154,-713.9,0.00013698,2]
[408064596,1773095446165,-359.19283356,0.00013698,2]
[408064654,1773096632274,-366.82802324,9.677e-05,2]
[408064751,1773096638612,-299.95995515,9.58e-05,2]
[408064753,1773096638622,-1299.96233334,9.677e-05,2]
[408064757,1773096638652,-3333.20964342,9.677e-05,2]
[408064759,1773096638662,-193.2594721,9.726e-05,2]
[408064761,1773096638671,-557.0,9.775e-05,2]
[408064763,1773096638680,-1633.74475489,9.853e-05,2]
[408064765,1773096638690,-300.0,9.952e-05,2]
[408064767,1773096638699,-832.10460296,9.952e-05,2]
[408064835,1773096640724,-367.89539704,9.952e-05,2]
[408064836,1773096640733,-3842.6211826,9.953e-05,2]
[408064837,1773096640742,-2756.98693427,0.00010053,2]
[408064838,1773096640753,-254.01130894,0.00010053,2]
[408064839,1773096640764,-992.92046226,0.00010053,2]
[408064840,1773096640775,-208.49814719,0.00010075,2]
[408064841,1773096640786,-291.50185281,0.00010075,2]
[408064842,1773096640795,-300.01628317,0.00010151,2]
[408064853,1773096643498,-37736.31789411,0.00010151,2]
[408064854,1773096643510,-806.99127554,0.00010151,2]
[408064855,1773096643522,-3500.0,0.00010151,2]
[408064856,1773096643533,-7656.67454718,0.00010151,2]
[408064857,1773096643543,-300.0,0.00010151,2]
[408064858,1773096643552,-300.0,0.00010151,2]
[408064859,1773096643561,-300.0,0.00010151,2]
[408064860,1773096643570,-300.0,0.00010151,2]
[408064861,1773096643580,-300.0,0.00010151,2]
[408064862,1773096643589,-300.0,0.00010151,2]
[408064863,1773096643599,-300.0,0.00010151,2]
[408064864,1773096643609,-300.0,0.00010151,2]
[408064865,1773096643619,-300.0,0.00010151,2]
[408064866,1773096643628,-300.0,0.00010151,2]
[408064867,1773096643637,-300.0,0.00010151,2]
[408064868,1773096643647,-300.0,0.00010151,2]
[408064869,1773096643656,-300.0,0.00010151,2]
[408064870,1773096643665,-300.0,0.00010151,2]
[408064871,1773096643674,-300.0,0.00010151,2]
[408064872,1773096643683,-311.2262941,0.00010253,2]
[408064873,1773096643695,-4328.44850079,0.00010253,2]
[408064874,1773096643704,-3317.35319753,0.00010353,2]
[408064875,1773096643716,-1487.53375158,0.00010353,2]
[408064876,1773096643725,-600.0,0.00010353,2]
[408064877,1773096643734,-420.0,0.00010947,2]
[408064878,1773096643744,-1206.0,0.00010947,2]
[408064879,1773096643753,-720.0,0.00011388,2]
[408064880,1773096643762,-228.04617708,0.00011726,2]
[408064881,1773096643771,-180.0,0.00012042,2]
[408064882,1773096643946,-256.9303031,0.00012527,2]
[408064885,1773096646141,-607.0696969,0.00012527,2]
[408064886,1773096646150,-250.0,0.00012916,2]
[408064887,1773096646159,-6870.48399289,0.00013399,2]
[408064888,1773096646170,-9461.48991753,0.00013399,2]
[408064889,1773096646179,-191.17381741,0.00013497,2]
[408064890,1773096646187,-156.606,0.00013497,2]
[408064891,1773096646196,-1591.64284015,0.00013498,2]
[408064892,1773096646211,-253.7425319,0.00013498,2]
[408064893,1773096646269,-2088.0,0.00013498,2]
[408064894,1773096646283,-14735.0,0.00013498,2]
[408064924,1773097536172,-639.7578,9.505e-05,2]
[408064955,1773097832269,-417.00189491,9.286e-05,2]
[408064957,1773097832279,-5000.0,9.386e-05,2]
[408064959,1773097832289,-553.0,9.481e-05,2]
[408064962,1773097832298,-184.83335912,9.577e-05,2]
[408064964,1773097832307,-150.0,9.7e-05,30]
[408064966,1773097832317,-389.0,9.89e-05,2]
[408064968,1773097832326,-300.0,9.891e-05,2]
[408064970,1773097832336,-300.0,9.891e-05,2]
[408064972,1773097832346,-300.0,9.891e-05,2]
[408064974,1773097832356,-300.0,9.891e-05,2]
[408064976,1773097832364,-300.0,9.891e-05,2]
[408064978,1773097832373,-300.0,9.891e-05,2]
[408064980,1773097832383,-300.0,9.891e-05,2]
[408064982,1773097832392,-300.0,9.891e-05,2]
[408064984,1773097832401,-300.0,9.891e-05,2]
[408064985,1773097832410,-300.0,9.891e-05,2]
[408064987,1773097832419,-300.0,9.891e-05,2]
[408064989,1773097832428,-300.0,9.891e-05,2]
[408064991,1773097832437,-300.0,9.891e-05,2]
[408064993,1773097832447,-300.0,9.891e-05,2]
[408064995,1773097832456,-300.0,9.891e-05,2]
[408064997,1773097832465,-600.0,0.00010088,2]
[408064999,1773097832474,-1957.856,0.00010551,2]
[408065001,1773097832483,-158.98496608,0.00010551,2]
[408065003,1773097832494,-3.39575292,0.00010551,2]
[408065005,1773097832503,-168.3888056,0.00010551,2]
[408065007,1773097832512,-174.61919141,0.00010551,2]
[408065009,1773097832521,-108.97229003,0.00010551,2]
[408065093,1773097838429,-1262.01973514,9.891e-05,2]
[408065094,1773097838440,-12341.37792317,9.891e-05,2]
[408065105,1773097840924,-293.3971866,9.891e-05,2]
[408065106,1773097840936,-4108.0010758,9.891e-05,2]
[408065119,1773097843450,-2029.20787857,9.891e-05,2]
[408065120,1773097843462,-849.78408493,9.891e-05,2]
[408065121,1773097843474,-359.66901507,9.891e-05,2]
[408065122,1773097843564,-1119.46594996,9.891e-05,2]
[408065129,1773097846296,-27637.07715076,9.891e-05,2]
[408065130,1773097846305,-72.10781146,0.00010551,2]
[408065131,1773097846314,-187.78006525,0.00010551,2]
[408065132,1773097846323,-194.72792766,0.00010551,2]
[408065133,1773097846332,-201.93286099,0.00010551,2]
[408065134,1773097846341,-209.40437684,0.00010551,2]
[408065135,1773097846350,-217.15233878,0.00010551,2]
[408065136,1773097846359,-225.18697532,0.00010551,2]
[408065137,1773097846367,-2150.738,0.00010551,2]
[408065138,1773097846376,-233.51889341,0.00010551,2]
[408065139,1773097846385,-242.15909246,0.00010551,2]
[408065140,1773097846395,-49.74785475,0.00010551,2]
[408065177,1773099002279,153.05,2e-05,2]
[408065205,1773099032521,-1200.0,9.334e-05,2]
[408065207,1773099032530,-3425.41033531,9.335e-05,2]
[408065337,1773099038698,-1574.58966469,9.335e-05,2]
[408065339,1773099038708,-551.0,9.335e-05,2]
[408065341,1773099038717,-185.39672085,9.429e-05,2]
[408065343,1773099038726,-946.5268268,0.00010098,2]
[408065707,1773099043827,-806.99127554,9.242e-05,2]
[408065722,1773099046667,-4193.00872446,9.242e-05,2]
[408065723,1773099046678,-3359.4410093,0.00010098,2]
[408065724,1773099046688,-1620.806816,0.00010778,2]
[408065725,1773099046697,-500.0,0.00010868,2]
[408065726,1773099046706,-10.15651312,0.00010941,2]
[408065755,1773100203859,173.9,2e-05,2]
[408065784,1773100231705,-5000.0,9.606e-05,2]
[408065786,1773100231714,-556.0,9.703e-05,2]
[408065788,1773100231724,-197.82956518,9.752e-05,2]
[408065790,1773100231733,-232.41493923,0.0001,2]
[408065792,1773100231742,-1188.58369741,0.0001008,2]
[408065794,1773100231752,-160.886862,0.00010344,2]
[408065797,1773100231762,-160.886862,0.00010344,120]
[408065800,1773100231770,-1200.0,0.00010377,2]
[408065803,1773100231779,-2006.32333602,0.0001038,2]
[408065807,1773100231790,-533.60517347,0.0001038,2]
[408065962,1773100238005,-5000.0,0.00010276,2]
[408065963,1773100238015,-386.24066634,0.0001038,2]
[408065964,1773100238024,-500.0,0.00010875,2]
[408065965,1773100238033,-166.0,0.00010941,2]
[408065966,1773100238043,-166.0,0.00010941,2]
[408065967,1773100238052,-230.22395277,0.00010941,2]
[408065968,1773100238061,-512.92391896,0.00010941,2]
[408065969,1773100238071,-6503.61146193,0.00010941,2]
[408066006,1773100245408,-3486.23202495,0.00010941,2]
[408066007,1773100245417,-479.33242467,0.00010941,2]
[408066008,1773100245455,-800.0,0.00010941,2]
[408066015,1773100246028,-48720.66757533,0.00010941,2]
[408066016,1773100246037,-151.0,0.00010958,2]
[408066017,1773100246047,-151.0,0.00010958,2]
[408066018,1773100246056,-151.0,0.00010958,2]
[408066019,1773100246066,-151.0,0.00010958,2]
[408066020,1773100246075,-151.0,0.00010958,2]
[408066021,1773100246085,-151.0,0.00010958,2]
[408066022,1773100246097,-151.0,0.00010958,2]
[408066023,1773100246110,-151.0,0.00010958,2]
[408066024,1773100246120,-151.0,0.00010958,2]
[408066025,1773100246129,-203.94798567,0.00010958,2]
[408066026,1773100246140,-151.0,0.00010958,2]
[408066027,1773100246151,-3120.02484984,0.00010964,2]
[408066028,1773100246162,-151.0,0.00010964,2]
[408066029,1773100246172,-151.0,0.00010964,2]
[408066030,1773100246182,-151.0,0.00010964,2]
[408066031,1773100246199,-653.6,0.00011,30]
[408066032,1773100246210,-600.0,0.00011182,2]
[408066033,1773100246221,-1620.806816,0.00011232,2]
[408066034,1773100246231,-501.386,0.00011388,2]
[408066035,1773100246241,-161.727925,0.00011685,2]
[408066036,1773100246251,-151.0,0.00011685,2]
[408066037,1773100246261,-151.0,0.00011685,2]
[408066038,1773100246270,-1620.806816,0.00011685,2]
[408066039,1773100246282,-233.43888691,0.00011752,2]
[408066040,1773100246296,-879.0,0.00012,5]
[408066041,1773100246307,-5407.56096974,0.00012,2]
[408066042,1773100246319,-215.75330822,0.00012138,2]
[408066043,1773100246328,-1620.806816,0.00012139,2]
[408066044,1773100246337,-720.0,0.00012301,2]
[408066045,1773100246346,-3313.88052385,0.00012456,2]
[408066046,1773100246355,-151.0,0.00012456,2]
[408066047,1773100246366,-151.0,0.00012456,2]
[408066048,1773100246376,-126.74063206,0.00012593,2]
[408066058,1773101148122,-639.7578,9.129e-05,2]
[408066093,1773101432053,-782.6690278,8.77e-05,2]
[408066211,1773101437908,-781.08495,8.77e-05,2]
[408066218,1773101437964,-3436.2460222,8.77e-05,2]
[408066220,1773101437973,-2102.80814072,8.859e-05,2]
[408066222,1773101437983,-544.0,8.859e-05,2]
[408066224,1773101437992,-193.49326555,9.175e-05,2]
[408066226,1773101438002,-1200.0,9.485e-05,2]
[408066228,1773101438011,-300.0,9.486e-05,2]
[408066230,1773101438020,-7322.9352225,9.487e-05,2]
[408066232,1773101438029,-203.0611873,9.503e-05,2]
[408066234,1773101438039,-250.0,9.826e-05,2]
[408066236,1773101438048,-3393.30846077,0.0001,2]
[408066238,1773101438058,-190.0,0.0001,2]
[408066240,1773101438067,-50000.0,0.0001,2]
[408066242,1773101438076,-688.322376,0.000109,2]
[408066244,1773101438085,-8552.0319223,0.00011,2]
[408066324,1773101438833,-2507.84039351,0.00011,2]
[408066326,1773101438845,-3228.18133679,0.00011,2]
[408066328,1773101438854,-228.32205335,0.00011175,2]
[408066330,1773101438863,-688.322376,0.00011359,2]
[408066332,1773101438872,-401.109,0.00011726,2]
[408066334,1773101438881,-688.322376,0.00011817,2]
[408066336,1773101438890,-688.322376,0.00012276,2]
[408066338,1773101438900,-1000.0,0.00012593,2]
[408066340,1773101438911,-1000.0,0.00012593,2]
[408066342,1773101438920,-1000.0,0.00012593,2]
[408066344,1773101438929,-1000.0,0.00012593,2]
[408066346,1773101438938,-679.4239492,0.00012593,2]
[408066355,1773101439010,-301.0035268,0.00012593,2]
[408066357,1773101439019,-179.90760913,0.00012593,2]
[408066359,1773101439028,-689.0,0.00012593,2]
[408066361,1773101439037,-338.0,0.00012593,2]
[408066363,1773101439046,-338.0,0.00012593,2]
[408066365,1773101439055,-163.43040921,0.00012593,2]
[408066367,1773101439065,-151.0,0.00012593,2]
[408066369,1773101439074,-151.0,0.00012593,2]
[408066371,1773101439083,-151.0,0.00012593,2]
[408066373,1773101439092,-154.27490752,0.00012593,2]
[408066375,1773101439101,-151.0,0.00012593,2]
[408066377,1773101439110,-124.95537102,0.00012593,2]
[408066501,1773101440482,-193.49326555,0.00011088,2]
[408066503,1773101440491,-26.04462898,0.00012593,2]
[408066505,1773101440500,-151.0,0.00012593,2]
[408066507,1773101440509,-151.0,0.00012593,2]
[408066509,1773101440518,-151.0,0.00012593,2]
[408066511,1773101440528,-535.19617377,0.0001269,2]
[408066513,1773101440537,-688.322376,0.00012735,2]
[408066515,1773101440546,-600.0,0.00012844,2]
[408066517,1773101440555,-228.72822958,0.00012866,2]
[408066539,1773101440760,-271.27177042,0.00012866,2]
[408066541,1773101440770,-168.3888056,0.00012987,2]
[408066543,1773101440779,-500.0,0.00012987,2]
[408066545,1773101440788,-236.00453347,0.00012987,2]
[408066649,1773101443355,-151.0,0.00012593,2]
[408066650,1773101443365,-263.99546653,0.00012987,2]
[408066651,1773101443374,-454.01822532,0.00012987,2]
[408066652,1773101443385,-45.98177468,0.00012987,2]
[408066653,1773101443394,-151.0,0.00012987,2]
[408066654,1773101443404,-1957.856,0.00012987,2]
[408066655,1773101443413,-500.0,0.00012987,2]
[408066656,1773101443422,-500.0,0.00012987,2]
[408066657,1773101443431,-156.587,0.00012987,2]
[408066658,1773101443441,-500.0,0.00012987,2]
[408066659,1773101443450,-162.380719,0.00012987,2]
[408066660,1773101443459,-500.0,0.00012987,2]
[408066661,1773101443468,-168.3888056,0.00012987,2]
[408066662,1773101443477,-174.61919141,0.00012987,2]
[408066663,1773101443486,-500.0,0.00012987,2]
[408066664,1773101443495,-181.08010149,0.00012987,2]
[408066665,1773101443504,-500.0,0.00012987,2]
[408066666,1773101443513,-187.78006525,0.00012987,2]
[408066667,1773101443522,-500.0,0.00012987,2]
[408066668,1773101443531,-194.72792766,0.00012987,2]
[408066669,1773101443540,-500.0,0.00012987,2]
[408066670,1773101443549,-162.380719,0.00012987,2]
[408066671,1773101443560,-201.93286099,0.00012987,2]
[408066672,1773101443569,-500.0,0.00012987,2]
[408066673,1773101443578,-168.3888056,0.00012987,2]
[408066674,1773101443587,-209.40437684,0.00012987,2]
[408066675,1773101443596,-500.0,0.00012987,2]
[408066676,1773101443605,-174.61919141,0.00012987,2]
[408066677,1773101443614,-217.15233878,0.00012987,2]
[408066678,1773101443628,-500.0,0.00012987,2]
[408066679,1773101443637,-181.08010149,0.00012987,2]
[408066680,1773101443647,-225.18697532,0.00012987,2]
[408066681,1773101443656,-500.0,0.00012987,2]
[408066682,1773101443667,-239.72903831,0.00012987,2]
[408066684,1773101443676,-233.51889341,0.00012987,2]
[408066686,1773101443686,-500.0,0.00012987,2]
[408066688,1773101443695,-242.15909246,0.00012987,2]
[408066689,1773101443705,-313.02465034,0.00012987,2]
[408066690,1773101443715,-251.11897888,0.00012987,2]
[408066691,1773101443724,-260.4103811,0.00012987,2]
[408066692,1773101443735,-270.0455652,0.00012987,2]
[408066693,1773101443744,-280.03725112,0.00012987,2]
[408066694,1773101443753,-2150.738,0.00012987,2]
[408066695,1773101443763,-290.39862941,0.00012987,2]
[408066696,1773101443773,-301.1433787,0.00012987,2]
[408066697,1773101443783,-537.6845,0.00012987,2]
[408066698,1773101443792,-151.0,0.00013,2]
[408066699,1773101443802,-151.0,0.00013,2]
[408066700,1773101443811,-638.8977787,0.00013042,2]
[408066701,1773101443821,-228.32205335,0.00013088,2]
[408066702,1773101443831,-688.322376,0.00013194,2]
[408066703,1773101443840,-151.0,0.000133,2]
[408066704,1773101443849,-800.0,0.00013313,2]
[408066705,1773101443858,-3207.29231697,0.00013396,2]
[408066706,1773101443879,-806.99127554,0.00013396,2]
[408066707,1773101443893,-6560.50386647,0.00013396,2]
[408066708,1773101443910,-415.20624435,0.00013396,2]
[408066709,1773101443939,-1504.3502,0.00013396,2]
[408066710,1773101443960,-11630.40653604,0.00013396,2]
[408066716,1773101445890,-151.0,0.00012593,2]
[408066718,1773101445899,-151.0,0.00012593,2]
[408066720,1773101445909,-1302.58482915,0.00013396,2]
[408066722,1773101445918,-3906.63961455,0.00013396,2]
[408066724,1773101445928,-151.0,0.000134,2]
[408066726,1773101445937,-151.0,0.000134,2]
[408066728,1773101445947,-758.66468991,0.000134,2]
[408066730,1773101445956,-1762.61719741,0.000134,2]
[408066732,1773101445966,-1967.4359797,0.000134,2]
[408066734,1773101445975,-151.0,0.000134,2]
[408066736,1773101445984,-151.0,0.000134,2]
[408066738,1773101445993,-151.0,0.000134,2]
[408066740,1773101446002,-1540.41835745,0.00013413,9]
[408066742,1773101446011,-151.0,0.000135,2]
[408066743,1773101446020,-151.0,0.000135,2]
[408066745,1773101446030,-151.0,0.000135,2]
[408066747,1773101446039,-151.0,0.000135,2]
[408066748,1773101446049,-2230.315306,0.00013535,2]
[408066749,1773101446058,-779.51975372,0.0001356,2]
[408066750,1773101446067,-151.0,0.000136,2]
[408066751,1773101446076,-151.0,0.000136,2]
[408066752,1773101446085,-151.0,0.000136,2]
[408066753,1773101446095,-151.0,0.000136,2]
[408066754,1773101446106,-697.33,0.000136,2]
[408066755,1773101446115,-151.0,0.000136,2]
[408066756,1773101446124,-54177.02137936,0.00013631,2]
[408066757,1773101446134,-571.7,0.00013698,2]
[408066758,1773101446143,-571.7,0.00013698,2]
[408066759,1773101446153,-571.7,0.00013698,2]
[408066760,1773101446162,-571.7,0.00013698,2]
[408066761,1773101446172,-571.7,0.00013698,2]
[408066762,1773101446181,-571.7,0.00013698,2]
[408066763,1773101446190,-571.7,0.00013698,2]
[408066764,1773101446199,-571.7,0.00013698,2]
[408066765,1773101446209,-571.7,0.00013698,2]
[408066766,1773101446218,-571.7,0.00013698,2]
[408066767,1773101446227,-469.24581288,0.00013698,2]
[408066768,1773101446236,-156.0,0.00013699,2]
[408066769,1773101446245,-2739.648347,0.00013699,2]
[408066770,1773101446254,-1000.0,0.00013699,2]
[408066771,1773101446263,-151.0,0.00013699,2]
[408066772,1773101446272,-151.0,0.00013699,2]
[408066773,1773101446281,-151.0,0.00013699,2]
[408066774,1773101446290,-292.0,0.00013699,2]
[408066775,1773101446299,-151.0,0.00013699,2]
[408066776,1773101446308,-151.0,0.00013699,2]